[Event "*** Titled Tuesday Blitz"]
[Site "Chess.com"]
[Date "2020.04.28"]
[Round "2"]
[White "SONOFHOLYGOD"]
[Black "Mimsychess"]
[Result "1-0"]
[WhiteElo "2648"]
[BlackElo "2333"]
[TimeControl "180+1"]
[EndTime "10:16:57 PDT"]
[Termination "SONOFHOLYGOD won by resignation"]

1. d4 {[%clk 0:03:00.9]} 1... Nf6 {[%clk 0:02:59.4]} 2. c4 {[%clk 0:03:00.4]}
2... e6 {[%clk 0:02:58.2]} 3. Nf3 {[%clk 0:02:59.8]} 3... b6 {[%clk 0:02:57.4]}
4. a3 {[%clk 0:02:59.4]} 4... Ba6 {[%clk 0:02:56.1]} 5. Nbd2 {[%clk 0:02:57.8]}
5... c5 {[%clk 0:02:48.4]} 6. dxc5 {[%clk 0:02:52]} 6... bxc5 {[%clk 0:02:41.6]}
7. e3 {[%clk 0:02:46.9]} 7... Be7 {[%clk 0:02:40.2]} 8. Be2 {[%clk 0:02:45.3]}
8... O-O {[%clk 0:02:40.6]} 9. O-O {[%clk 0:02:45.8]} 9... d6 {[%clk 0:02:41.1]}
10. b3 {[%clk 0:02:45.9]} 10... Nbd7 {[%clk 0:02:35.3]} 11. Bb2 {[%clk
0:02:43.6]} 11... Bb7 {[%clk 0:02:35.9]} 12. Qc2 {[%clk 0:02:43.2]} 12... a5
{[%clk 0:02:34.2]} 13. Rfd1 {[%clk 0:02:41.2]} 13... Qb6 {[%clk 0:02:34.3]} 14.
Nb1 {[%clk 0:02:32.1]} 14... Be4 {[%clk 0:02:24.6]} 15. Qc3 {[%clk 0:02:32]}
15... Rab8 {[%clk 0:02:17.8]} 16. Nbd2 {[%clk 0:02:27.7]} 16... Bg6 {[%clk
0:02:17.7]} 17. Nh4 {[%clk 0:02:21.1]} 17... a4 {[%clk 0:02:16.3]} 18. Nxg6
{[%clk 0:02:17.6]} 18... hxg6 {[%clk 0:02:17.2]} 19. Rab1 {[%clk 0:02:15]} 19...
axb3 {[%clk 0:02:16.2]} 20. Ba1 {[%clk 0:02:11.1]} 20... Ne5 {[%clk 0:02:08.8]}
21. Rxb3 {[%clk 0:02:06.5]} 21... Qa7 {[%clk 0:02:09.2]} 22. Rdb1 {[%clk
0:02:04.9]} 22... Rxb3 {[%clk 0:02:08.2]} 23. Qxb3 {[%clk 0:02:04.6]} 23... Ra8
{[%clk 0:02:01.1]} 24. Qb7 {[%clk 0:01:46.4]} 24... Qxb7 {[%clk 0:01:55]} 25.
Rxb7 {[%clk 0:01:47.3]} 25... Rxa3 {[%clk 0:01:55.3]} 26. Bxe5 {[%clk
0:01:46.9]} 26... dxe5 {[%clk 0:01:45.8]} 27. Rxe7 {[%clk 0:01:46.3]} 27... Ra2
{[%clk 0:01:46.2]} 28. Kf1 {[%clk 0:01:30.2]} 28... Rxd2 {[%clk 0:01:45]} 29. f3
{[%clk 0:01:29.3]} 29... Ra2 {[%clk 0:01:34.4]} 30. Rc7 {[%clk 0:01:26.4]} 30...
Ra5 {[%clk 0:01:34.2]} 31. g4 {[%clk 0:01:24.4]} 31... g5 {[%clk 0:01:34]} 32.
Bd3 {[%clk 0:01:22.4]} 32... g6 {[%clk 0:01:34.1]} 33. Kf2 {[%clk 0:01:17.6]}
33... Ra2+ {[%clk 0:01:32.2]} 34. Be2 {[%clk 0:01:17.1]} 34... Ra5 {[%clk
0:01:28.4]} 35. h3 {[%clk 0:01:17.3]} 35... e4 {[%clk 0:01:28.5]} 36. Bd1 {[%clk
0:01:13.9]} 36... Ra2+ {[%clk 0:01:26.8]} 37. Kg3 {[%clk 0:01:10.4]} 37... Rd2
{[%clk 0:01:26.8]} 38. Ba4 {[%clk 0:01:08.8]} 38... Rd3 {[%clk 0:01:23.3]} 39.
fxe4 {[%clk 0:01:06]} 39... Rxe3+ {[%clk 0:01:22.5]} 40. Kf2 {[%clk 0:01:06.5]}
40... Rxe4 {[%clk 0:01:22]} 41. Rxc5 {[%clk 0:01:05.4]} 41... Rf4+ {[%clk
0:01:20.7]} 42. Kg2 {[%clk 0:01:05.2]} 42... Ne4 {[%clk 0:01:20]} 43. Rc7 {[%clk
0:01:04.4]} 43... Rf2+ {[%clk 0:01:14.8]} 44. Kg1 {[%clk 0:01:04.2]} 44... Ra2
{[%clk 0:01:14.3]} 45. Be8 {[%clk 0:01:03.6]} 45... f5 {[%clk 0:01:13.6]} 46.
Bxg6 {[%clk 0:00:58]} 46... Ng3 {[%clk 0:01:13.8]} 47. Bf7+ {[%clk 0:00:51.9]}
47... Kf8 {[%clk 0:01:10.9]} 48. Bxe6 {[%clk 0:00:51]} 48... f4 {[%clk
0:01:10.4]} 49. c5 {[%clk 0:00:49.6]} 49... Ra1+ {[%clk 0:01:06.5]} 50. Kg2
{[%clk 0:00:48.3]} 50... Ra2+ {[%clk 0:01:06.6]} 51. Bxa2 {[%clk 0:00:44.3]} 1-0

[Event "*** Titled Tuesday Blitz"]
[Site "Chess.com"]
[Date "2020.04.28"]
[Round "2"]
[White "Mikhail_Golubev"]
[Black "temus_galaktionov"]
[Result "0-1"]
[WhiteElo "2501"]
[BlackElo "2753"]
[TimeControl "180+1"]
[EndTime "10:16:58 PDT"]
[Termination "temus_galaktionov won on time"]

1. e4 {[%clk 0:03:00.9]} 1... c6 {[%clk 0:03:00.9]} 2. d4 {[%clk 0:03:00.2]}
2... g6 {[%clk 0:03:01.6]} 3. Nf3 {[%clk 0:02:57.2]} 3... Bg7 {[%clk 0:03:02.1]}
4. Be2 {[%clk 0:02:56.9]} 4... d6 {[%clk 0:03:03]} 5. O-O {[%clk 0:02:56]} 5...
Nd7 {[%clk 0:03:03.6]} 6. c4 {[%clk 0:02:54.7]} 6... e5 {[%clk 0:03:03.4]} 7.
Nc3 {[%clk 0:02:54.2]} 7... Ngf6 {[%clk 0:03:02.9]} 8. Qc2 {[%clk 0:02:49.9]}
8... O-O {[%clk 0:03:02.3]} 9. Rd1 {[%clk 0:02:50]} 9... Qe7 {[%clk 0:03:02.2]}
10. b3 {[%clk 0:02:47.1]} 10... Re8 {[%clk 0:02:58.8]} 11. Ba3 {[%clk
0:02:36.8]} 11... exd4 {[%clk 0:02:58.6]} 12. Rxd4 {[%clk 0:02:35.1]} 12... Nc5
{[%clk 0:02:50.1]} 13. Re1 {[%clk 0:02:03]} 13... Nfxe4 {[%clk 0:02:47.4]} 14.
Rxe4 {[%clk 0:01:23.6]} 14... Nxe4 {[%clk 0:02:40.6]} 15. Bd3 {[%clk 0:01:18.7]}
15... f5 {[%clk 0:02:23.9]} 16. Nxe4 {[%clk 0:01:13]} 16... fxe4 {[%clk
0:02:24.8]} 17. Bxe4 {[%clk 0:01:13.2]} 17... Be6 {[%clk 0:02:22.8]} 18. Qd2
{[%clk 0:00:59.7]} 18... Rad8 {[%clk 0:02:21.6]} 19. h4 {[%clk 0:00:45.6]} 19...
Qf6 {[%clk 0:02:13.5]} 20. Ng5 {[%clk 0:00:23.6]} 20... Bf5 {[%clk 0:02:10.3]}
21. Bd5+ {[%clk 0:00:22.3]} 21... cxd5 {[%clk 0:01:43.6]} 22. Qxd5+ {[%clk
0:00:20.4]} 22... Be6 {[%clk 0:01:17.1]} 23. Rxe6 {[%clk 0:00:17.9]} 23... Rxe6
{[%clk 0:01:10.6]} 24. Nxe6 {[%clk 0:00:17.6]} 24... Rd7 {[%clk 0:01:09.7]} 25.
Bb2 {[%clk 0:00:09.1]} 25... Qxb2 {[%clk 0:00:50.6]} 0-1

[Event "*** Titled Tuesday Blitz"]
[Site "Chess.com"]
[Date "2020.04.28"]
[Round "2"]
[White "Evgeny81"]
[Black "DrBergerBerger"]
[Result "1-0"]
[WhiteElo "2682"]
[BlackElo "2425"]
[TimeControl "180+1"]
[EndTime "10:16:59 PDT"]
[Termination "Evgeny81 won on time"]

1. d4 {[%clk 0:03:00.9]} 1... d5 {[%clk 0:02:56]} 2. c4 {[%clk 0:03:00.5]} 2...
dxc4 {[%clk 0:02:56]} 3. Nf3 {[%clk 0:02:59.7]} 3... Nf6 {[%clk 0:02:55.4]} 4.
e3 {[%clk 0:03:00]} 4... a6 {[%clk 0:02:53.8]} 5. Bxc4 {[%clk 0:02:58.8]} 5...
e6 {[%clk 0:02:53.8]} 6. O-O {[%clk 0:02:57.8]} 6... c5 {[%clk 0:02:52.5]} 7. b3
{[%clk 0:02:57]} 7... Nbd7 {[%clk 0:02:31.6]} 8. Bb2 {[%clk 0:02:50.7]} 8... b5
{[%clk 0:02:30]} 9. Be2 {[%clk 0:02:50.4]} 9... Bb7 {[%clk 0:02:29.9]} 10. a4
{[%clk 0:02:50.6]} 10... bxa4 {[%clk 0:02:22.7]} 11. Rxa4 {[%clk 0:02:49.3]}
11... Be7 {[%clk 0:02:05.4]} 12. Nbd2 {[%clk 0:02:46.4]} 12... O-O {[%clk
0:02:00.9]} 13. Qa1 {[%clk 0:02:45.6]} 13... cxd4 {[%clk 0:01:52.2]} 14. Bxd4
{[%clk 0:02:42.9]} 14... Nc5 {[%clk 0:01:17]} 15. Ra5 {[%clk 0:02:38.7]} 15...
Rc8 {[%clk 0:00:52.7]} 16. Rc1 {[%clk 0:02:19.6]} 16... Nfe4 {[%clk 0:00:37.4]}
17. Nxe4 {[%clk 0:02:14.3]} 17... Nxb3 {[%clk 0:00:32.4]} 18. Rxc8 {[%clk
0:02:06.3]} 18... Qxc8 {[%clk 0:00:29]} 19. Qb1 {[%clk 0:01:17.3]} 19... Nxa5
{[%clk 0:00:16.1]} 20. Neg5 {[%clk 0:01:17.5]} 20... g6 {[%clk 0:00:12]} 21. h4
{[%clk 0:01:17.2]} 21... Bd5 {[%clk 0:00:09.5]} 22. h5 {[%clk 0:01:08.8]} 22...
Nc6 {[%clk 0:00:09.3]} 23. Ba1 {[%clk 0:01:08]} 23... Qb8 {[%clk 0:00:09]} 24.
Qd3 {[%clk 0:00:58.7]} 24... Rd8 {[%clk 0:00:07.8]} 25. Qc3 {[%clk 0:00:56.6]}
25... e5 {[%clk 0:00:06.1]} 26. e4 {[%clk 0:00:53.6]} 1-0

[Event "*** Titled Tuesday Blitz"]
[Site "Chess.com"]
[Date "2020.04.28"]
[Round "2"]
[White "vladislavkovalev"]
[Black "UCantHandleDenker"]
[Result "1-0"]
[WhiteElo "2861"]
[BlackElo "2555"]
[TimeControl "180+1"]
[EndTime "10:17:00 PDT"]
[Termination "vladislavkovalev won by resignation"]

1. e4 {[%clk 0:03:00.9]} 1... c5 {[%clk 0:02:59.2]} 2. Be2 {[%clk 0:03:01]} 2...
d6 {[%clk 0:02:58.7]} 3. d3 {[%clk 0:03:01.9]} 3... g6 {[%clk 0:02:57.8]} 4. f4
{[%clk 0:03:02.8]} 4... Bg7 {[%clk 0:02:58]} 5. Nf3 {[%clk 0:03:03.7]} 5... Nc6
{[%clk 0:02:58.5]} 6. O-O {[%clk 0:03:04.4]} 6... Nf6 {[%clk 0:02:57.9]} 7. c3
{[%clk 0:03:05]} 7... Rb8 {[%clk 0:02:57.4]} 8. Kh1 {[%clk 0:03:03.8]} 8... O-O
{[%clk 0:02:57.2]} 9. Be3 {[%clk 0:03:03.1]} 9... b5 {[%clk 0:02:57.1]} 10. a3
{[%clk 0:03:03.4]} 10... a5 {[%clk 0:02:56.5]} 11. d4 {[%clk 0:03:03.8]} 11...
Nxe4 {[%clk 0:02:40.1]} 12. d5 {[%clk 0:03:01.1]} 12... Na7 {[%clk 0:02:34.8]}
13. Nbd2 {[%clk 0:03:00.6]} 13... Bf5 {[%clk 0:02:26.9]} 14. Nxe4 {[%clk
0:02:32.8]} 14... Bxe4 {[%clk 0:02:26.6]} 15. Ng5 {[%clk 0:02:33.6]} 15... Bf5
{[%clk 0:02:25.7]} 16. g4 {[%clk 0:02:34.3]} 16... Bc8 {[%clk 0:02:23]} 17. f5
{[%clk 0:02:34.8]} 17... Bb7 {[%clk 0:02:01.8]} 18. fxg6 {[%clk 0:02:19.3]}
18... hxg6 {[%clk 0:01:55.7]} 19. Bf3 {[%clk 0:02:19.5]} 19... Bf6 {[%clk
0:01:53.9]} 20. Qe1 {[%clk 0:02:12.7]} 20... Kg7 {[%clk 0:01:53.3]} 21. Ne4
{[%clk 0:02:06.1]} 21... Be5 {[%clk 0:01:44.7]} 22. Rd1 {[%clk 0:01:53.9]} 22...
Nc8 {[%clk 0:01:33.9]} 23. Qd2 {[%clk 0:01:47.8]} 23... Rh8 {[%clk 0:01:32.2]}
24. Bf4 {[%clk 0:01:47.1]} 24... Bxf4 {[%clk 0:01:12]} 25. Qxf4 {[%clk 0:01:48]}
25... f6 {[%clk 0:01:12.2]} 26. g5 {[%clk 0:01:36.6]} 26... f5 {[%clk 0:01:09]}
27. Nxc5 {[%clk 0:01:37.2]} 27... dxc5 {[%clk 0:01:01.8]} 28. Qxb8 {[%clk
0:01:38.1]} 28... Qd6 {[%clk 0:00:56.5]} 29. Qxd6 {[%clk 0:01:33.9]} 29... Nxd6
{[%clk 0:00:57.4]} 30. Rfe1 {[%clk 0:01:32.5]} 30... Kf7 {[%clk 0:00:56.8]} 31.
Re2 {[%clk 0:01:27.7]} 31... Rh4 {[%clk 0:00:27]} 32. Rde1 {[%clk 0:01:27]}
32... Nc8 {[%clk 0:00:25.7]} 33. Kg2 {[%clk 0:01:26.1]} 33... b4 {[%clk
0:00:15.4]} 34. Kg3 {[%clk 0:01:25.3]} 34... Rc4 {[%clk 0:00:13.3]} 35. d6
{[%clk 0:01:19.8]} 35... Bxf3 {[%clk 0:00:11.7]} 36. d7 {[%clk 0:01:16.4]} 36...
Bxe2 {[%clk 0:00:08.2]} 1-0

[Event "*** Titled Tuesday Blitz"]
[Site "Chess.com"]
[Date "2020.04.28"]
[Round "2"]
[White "Antelacus"]
[Black "Leonid_Starozhilov"]
[Result "1/2-1/2"]
[WhiteElo "2313"]
[BlackElo "2596"]
[TimeControl "180+1"]
[EndTime "10:17:01 PDT"]
[Termination "Game drawn by repetition"]

1. d4 {[%clk 0:03:00.9]} 1... Nf6 {[%clk 0:03:00]} 2. c4 {[%clk 0:03:00]} 2...
g6 {[%clk 0:03:00.2]} 3. Nc3 {[%clk 0:02:58.4]} 3... Bg7 {[%clk 0:03:00.6]} 4.
e4 {[%clk 0:02:57.9]} 4... d6 {[%clk 0:03:01]} 5. Nf3 {[%clk 0:02:57.9]} 5...
Bg4 {[%clk 0:03:00.6]} 6. Be2 {[%clk 0:02:55.8]} 6... O-O {[%clk 0:03:00.6]} 7.
O-O {[%clk 0:02:55.3]} 7... Nfd7 {[%clk 0:03:00]} 8. Be3 {[%clk 0:02:53.3]} 8...
a6 {[%clk 0:03:00.3]} 9. Qd2 {[%clk 0:02:51.4]} 9... e5 {[%clk 0:03:00.4]} 10.
d5 {[%clk 0:02:45.5]} 10... f5 {[%clk 0:03:00.6]} 11. Bg5 {[%clk 0:02:42.5]}
11... Qe8 {[%clk 0:02:55.8]} 12. exf5 {[%clk 0:02:38.9]} 12... gxf5 {[%clk
0:02:54.2]} 13. Bh6 {[%clk 0:02:29.7]} 13... Qg6 {[%clk 0:02:39.6]} 14. Bxg7
{[%clk 0:02:27.9]} 14... Bxf3 {[%clk 0:02:31]} 15. Bxf3 {[%clk 0:02:25.5]} 15...
Qxg7 {[%clk 0:02:26.1]} 16. Kh1 {[%clk 0:02:12.9]} 16... Nf6 {[%clk 0:02:23.6]}
17. Be2 {[%clk 0:02:07.8]} 17... Nbd7 {[%clk 0:02:18.3]} 18. f4 {[%clk
0:02:02.9]} 18... e4 {[%clk 0:02:12.5]} 19. Nd1 {[%clk 0:01:59.8]} 19... Kh8
{[%clk 0:02:02.5]} 20. Ne3 {[%clk 0:01:58]} 20... Qg6 {[%clk 0:02:01.2]} 21. Qd4
{[%clk 0:01:50.4]} 21... h5 {[%clk 0:01:53.2]} 22. b4 {[%clk 0:01:40.9]} 22...
Kh7 {[%clk 0:01:52.4]} 23. c5 {[%clk 0:01:38.8]} 23... Rf7 {[%clk 0:01:50.5]}
24. cxd6 {[%clk 0:01:36.8]} 24... cxd6 {[%clk 0:01:50.9]} 25. Rac1 {[%clk
0:01:36.5]} 25... Nf8 {[%clk 0:00:43]} 26. Rc2 {[%clk 0:01:30.4]} 26... Rd8
{[%clk 0:00:39.4]} 27. Rfc1 {[%clk 0:01:29.2]} 27... Rdd7 {[%clk 0:00:39.9]} 28.
a4 {[%clk 0:01:23.9]} 28... Ng4 {[%clk 0:00:38.5]} 29. Bxg4 {[%clk 0:01:22.1]}
29... hxg4 {[%clk 0:00:37.8]} 30. g3 {[%clk 0:01:20]} 30... Qg7 {[%clk 0:00:29]}
31. Qxg7+ {[%clk 0:01:17.1]} 31... Kxg7 {[%clk 0:00:29.9]} 32. a5 {[%clk
0:01:14]} 32... Nh7 {[%clk 0:00:28.6]} 33. Kg1 {[%clk 0:01:12.9]} 33... Kg6
{[%clk 0:00:28.6]} 34. Kf2 {[%clk 0:01:11.4]} 34... Nf6 {[%clk 0:00:29.2]} 35.
Rc8 {[%clk 0:01:09.6]} 35... Rh7 {[%clk 0:00:29.3]} 36. Kg1 {[%clk 0:01:05.6]}
36... Rhf7 {[%clk 0:00:22.1]} 37. R1c2 {[%clk 0:01:04]} 37... Rh7 {[%clk
0:00:21]} 38. Rc1 {[%clk 0:01:02.1]} 38... Rhf7 {[%clk 0:00:21]} 39. R1c2 {[%clk
0:01:01.8]} 39... Rh7 {[%clk 0:00:20.9]} 40. Rc1 {[%clk 0:01:01.6]} 1/2-1/2

[Event "*** Titled Tuesday Blitz"]
[Site "Chess.com"]
[Date "2020.04.28"]
[Round "2"]
[White "AlexandraSamaganova"]
[Black "ChrisTool2"]
[Result "0-1"]
[WhiteElo "2071"]
[BlackElo "2387"]
[TimeControl "180+1"]
[EndTime "10:17:01 PDT"]
[Termination "ChrisTool2 won by resignation"]

1. c4 {[%clk 0:03:00.9]} 1... c5 {[%clk 0:02:56.9]} 2. Nc3 {[%clk 0:02:59.2]}
2... b6 {[%clk 0:02:55.7]} 3. Nf3 {[%clk 0:02:53.4]} 3... Bb7 {[%clk 0:02:56.2]}
4. e3 {[%clk 0:02:52.8]} 4... d6 {[%clk 0:02:55.4]} 5. d4 {[%clk 0:02:53.1]}
5... Nf6 {[%clk 0:02:55.5]} 6. d5 {[%clk 0:02:53.3]} 6... Nbd7 {[%clk
0:02:53.9]} 7. Bd3 {[%clk 0:02:53.1]} 7... g6 {[%clk 0:02:51.8]} 8. O-O {[%clk
0:02:52.9]} 8... Bg7 {[%clk 0:02:52.3]} 9. a3 {[%clk 0:02:51.7]} 9... Ng4 {[%clk
0:02:47.2]} 10. Be2 {[%clk 0:02:44.8]} 10... O-O {[%clk 0:02:45.4]} 11. h3
{[%clk 0:02:44.5]} 11... Nge5 {[%clk 0:02:44.2]} 12. Nxe5 {[%clk 0:02:44.8]}
12... Nxe5 {[%clk 0:02:41.2]} 13. Rb1 {[%clk 0:02:37.6]} 13... e6 {[%clk
0:02:27]} 14. e4 {[%clk 0:02:27.4]} 14... exd5 {[%clk 0:02:23.8]} 15. Nxd5
{[%clk 0:02:24.1]} 15... Re8 {[%clk 0:02:08]} 16. Bf4 {[%clk 0:01:46.9]} 16...
Nc6 {[%clk 0:01:49.7]} 17. f3 {[%clk 0:01:29.5]} 17... Nd4 {[%clk 0:01:48]} 18.
Bd3 {[%clk 0:01:28.2]} 18... Bxd5 {[%clk 0:01:46.6]} 19. cxd5 {[%clk 0:01:28.4]}
19... Qh4 {[%clk 0:01:37.4]} 20. Bxd6 {[%clk 0:01:23.5]} 20... Rad8 {[%clk
0:01:31.6]} 21. Bh2 {[%clk 0:01:20.4]} 21... h5 {[%clk 0:01:23]} 22. Bc4 {[%clk
0:01:05.2]} 22... b5 {[%clk 0:01:19.4]} 23. Bd3 {[%clk 0:00:59.3]} 23... c4
{[%clk 0:01:12.2]} 24. Bc2 {[%clk 0:00:51.3]} 24... a5 {[%clk 0:01:02.5]} 25.
Bc7 {[%clk 0:00:45.4]} 25... Ra8 {[%clk 0:00:55.8]} 26. Bb6 {[%clk 0:00:44]}
26... Nxc2 {[%clk 0:00:49.5]} 27. Qxc2 {[%clk 0:00:41.7]} 27... Qf6 {[%clk
0:00:32.4]} 28. Rbc1 {[%clk 0:00:25.5]} 28... Qxb6+ {[%clk 0:00:31]} 0-1

[Event "*** Titled Tuesday Blitz"]
[Site "Chess.com"]
[Date "2020.04.28"]
[Round "2"]
[White "TST2014"]
[Black "Saloni1299"]
[Result "1/2-1/2"]
[WhiteElo "2632"]
[BlackElo "2320"]
[TimeControl "180+1"]
[EndTime "10:17:02 PDT"]
[Termination "Game drawn by agreement"]

1. d4 {[%clk 0:03:00.9]} 1... Nf6 {[%clk 0:02:58.7]} 2. c4 {[%clk 0:03:00.9]}
2... g6 {[%clk 0:02:57.8]} 3. Nf3 {[%clk 0:03:00.9]} 3... d5 {[%clk 0:02:58.1]}
4. cxd5 {[%clk 0:03:00.4]} 4... Nxd5 {[%clk 0:02:58.5]} 5. e4 {[%clk 0:03:00.4]}
5... Nb6 {[%clk 0:02:58.8]} 6. Nc3 {[%clk 0:02:59.8]} 6... Bg7 {[%clk
0:02:59.4]} 7. h3 {[%clk 0:02:52.9]} 7... O-O {[%clk 0:02:55.3]} 8. Be3 {[%clk
0:02:51.5]} 8... Nc6 {[%clk 0:02:51.7]} 9. Be2 {[%clk 0:02:43.4]} 9... Na5
{[%clk 0:02:45.9]} 10. b3 {[%clk 0:02:37.7]} 10... c5 {[%clk 0:02:46.2]} 11. Rc1
{[%clk 0:02:33.7]} 11... cxd4 {[%clk 0:02:46.5]} 12. Bxd4 {[%clk 0:02:33.6]}
12... Nc6 {[%clk 0:02:42.7]} 13. Bxg7 {[%clk 0:02:30.2]} 13... Kxg7 {[%clk
0:02:43.6]} 14. O-O {[%clk 0:02:29]} 14... Qxd1 {[%clk 0:02:36.1]} 15. Rfxd1
{[%clk 0:02:28.3]} 15... h6 {[%clk 0:02:37]} 16. Nd5 {[%clk 0:02:24.2]} 16...
Be6 {[%clk 0:02:31.4]} 17. Nc7 {[%clk 0:02:22.6]} 17... Rad8 {[%clk 0:02:30.5]}
18. Nxe6+ {[%clk 0:02:21.6]} 18... fxe6 {[%clk 0:02:31.4]} 19. Kf1 {[%clk
0:02:14]} 19... Kf6 {[%clk 0:02:31.6]} 20. Ke1 {[%clk 0:02:14.1]} 20... e5
{[%clk 0:02:29.6]} 21. Bb5 {[%clk 0:02:05.2]} 21... Nd4 {[%clk 0:02:28.9]} 22.
Nxd4 {[%clk 0:01:58.2]} 22... exd4 {[%clk 0:02:29.8]} 23. Rc7 {[%clk 0:01:56]}
23... Rb8 {[%clk 0:02:27.9]} 24. Rxd4 {[%clk 0:01:55.3]} 24... Rfc8 {[%clk
0:02:24]} 25. Rxc8 {[%clk 0:01:43.6]} 25... Rxc8 {[%clk 0:02:24.9]} 26. f4
{[%clk 0:01:36.2]} 26... Rc2 {[%clk 0:02:18.3]} 27. Rd2 {[%clk 0:01:35]} 27...
Rc3 {[%clk 0:01:56.7]} 28. Kf2 {[%clk 0:01:26.3]} 28... a6 {[%clk 0:01:57]} 29.
Be2 {[%clk 0:01:22.1]} 29... Rc1 {[%clk 0:01:56]} 30. g4 {[%clk 0:01:21.7]}
30... g5 {[%clk 0:01:54.9]} 31. e5+ {[%clk 0:01:22]} 31... Kg7 {[%clk
0:01:51.2]} 32. f5 {[%clk 0:01:21.3]} 32... Rc5 {[%clk 0:01:47.5]} 33. e6 {[%clk
0:01:15.8]} 33... Nd5 {[%clk 0:01:47.7]} 34. Bf3 {[%clk 0:01:15.4]} 34... Nf4
{[%clk 0:01:42.8]} 35. Bxb7 {[%clk 0:01:13.1]} 35... a5 {[%clk 0:01:42.1]} 36.
Bg2 {[%clk 0:01:09.7]} 36... h5 {[%clk 0:01:39.4]} 37. Bf3 {[%clk 0:01:06.4]}
37... Nxh3+ {[%clk 0:01:36]} 38. Kg3 {[%clk 0:01:06]} 38... Nf4 {[%clk
0:01:28.1]} 39. gxh5 {[%clk 0:01:03.6]} 39... Rxf5 {[%clk 0:01:28.4]} 40. Kg4
{[%clk 0:00:58.9]} 40... Re5 {[%clk 0:01:28.2]} 41. Rh2 {[%clk 0:00:46.7]} 41...
Kh6 {[%clk 0:01:26.9]} 42. Rc2 {[%clk 0:00:45.7]} 42... Rxe6 {[%clk 0:01:25.9]}
43. Re2 {[%clk 0:00:44.5]} 43... Nxe2 {[%clk 0:01:23.8]} 44. Bxe2 {[%clk
0:00:45.4]} 44... Rxe2 {[%clk 0:01:23.9]} 45. a3 {[%clk 0:00:43.4]} 45... Re3
{[%clk 0:01:23]} 1/2-1/2

[Event "*** Titled Tuesday Blitz"]
[Site "Chess.com"]
[Date "2020.04.28"]
[Round "2"]
[White "Efremov_Vlad"]
[Black "MasterKroket"]
[Result "1-0"]
[WhiteElo "2138"]
[BlackElo "2390"]
[TimeControl "180+1"]
[EndTime "10:17:05 PDT"]
[Termination "Efremov_Vlad won by resignation"]

1. c4 {[%clk 0:03:00.9]} 1... e6 {[%clk 0:02:59.6]} 2. d4 {[%clk 0:03:00.1]}
2... Nf6 {[%clk 0:02:59.9]} 3. Nf3 {[%clk 0:03:00.2]} 3... b6 {[%clk 0:02:59.8]}
4. g3 {[%clk 0:02:59.4]} 4... Bb7 {[%clk 0:03:00.2]} 5. Bg2 {[%clk 0:02:59.3]}
5... Be7 {[%clk 0:03:00.9]} 6. O-O {[%clk 0:02:59.6]} 6... O-O {[%clk
0:03:01.5]} 7. Nc3 {[%clk 0:03:00]} 7... Ne4 {[%clk 0:03:02.2]} 8. Bd2 {[%clk
0:03:00.4]} 8... f5 {[%clk 0:03:01.5]} 9. d5 {[%clk 0:02:56.4]} 9... Bf6 {[%clk
0:02:58.6]} 10. Rc1 {[%clk 0:02:54.4]} 10... Nxd2 {[%clk 0:02:53.3]} 11. Nxd2
{[%clk 0:02:46.7]} 11... e5 {[%clk 0:02:53.4]} 12. b4 {[%clk 0:02:23.7]} 12...
a5 {[%clk 0:02:52.3]} 13. a3 {[%clk 0:02:23.8]} 13... axb4 {[%clk 0:02:52]} 14.
axb4 {[%clk 0:02:24]} 14... d6 {[%clk 0:02:52.3]} 15. Nb5 {[%clk 0:02:21.6]}
15... Nd7 {[%clk 0:02:33.1]} 16. Nb3 {[%clk 0:02:20.5]} 16... Ra2 {[%clk
0:02:24.9]} 17. c5 {[%clk 0:02:14.8]} 17... dxc5 {[%clk 0:02:14.6]} 18. bxc5
{[%clk 0:02:14.4]} 18... Ba6 {[%clk 0:02:10.7]} 19. Nc3 {[%clk 0:02:14]} 19...
Ra3 {[%clk 0:02:06.1]} 20. cxb6 {[%clk 0:01:59.6]} 20... cxb6 {[%clk 0:02:00]}
21. Ra1 {[%clk 0:02:00.1]} 21... Rxa1 {[%clk 0:01:54.4]} 22. Qxa1 {[%clk
0:01:59.8]} 22... Bc4 {[%clk 0:01:55]} 23. Nd2 {[%clk 0:01:58]} 23... Qc8 {[%clk
0:01:46.2]} 24. Nxc4 {[%clk 0:01:56]} 24... Qxc4 {[%clk 0:01:47.1]} 25. Rc1
{[%clk 0:01:47.6]} 25... e4 {[%clk 0:01:46.8]} 26. Qa3 {[%clk 0:01:42.7]} 26...
Rc8 {[%clk 0:01:45.9]} 27. Na2 {[%clk 0:01:39]} 27... Qxc1+ {[%clk 0:01:16.6]}
28. Nxc1 {[%clk 0:01:38.1]} 28... Rc3 {[%clk 0:01:14.6]} 29. Qa8+ {[%clk
0:01:32]} 29... Kf7 {[%clk 0:01:14.7]} 30. Na2 {[%clk 0:01:30]} 30... Rc2 {[%clk
0:01:14.7]} 31. Qb7 {[%clk 0:01:21.9]} 31... Ke7 {[%clk 0:01:13.8]} 32. Nb4
{[%clk 0:01:21.2]} 32... Rc1+ {[%clk 0:01:06.6]} 33. Bf1 {[%clk 0:01:21.4]}
33... Kd6 {[%clk 0:01:01.5]} 34. Kg2 {[%clk 0:01:16.2]} 34... g5 {[%clk
0:00:56.7]} 35. e3 {[%clk 0:01:16.1]} 35... f4 {[%clk 0:00:53]} 36. exf4 {[%clk
0:00:59.6]} 36... gxf4 {[%clk 0:00:53]} 37. gxf4 {[%clk 0:01:00.2]} 37... Rc7
{[%clk 0:00:48]} 38. Qa6 {[%clk 0:00:54.9]} 38... Bd4 {[%clk 0:00:48]} 39. Bb5
{[%clk 0:00:51.8]} 39... Nf6 {[%clk 0:00:46.2]} 40. Qa8 {[%clk 0:00:49.6]} 40...
Kc5 {[%clk 0:00:38.2]} 41. Na6+ {[%clk 0:00:47.9]} 1-0

[Event "*** Titled Tuesday Blitz"]
[Site "Chess.com"]
[Date "2020.04.28"]
[Round "2"]
[White "Gabrielian_Artur"]
[Black "Confer77"]
[Result "1-0"]
[WhiteElo "2720"]
[BlackElo "2483"]
[TimeControl "180+1"]
[EndTime "10:17:06 PDT"]
[Termination "Gabrielian_Artur won by resignation"]

1. e4 {[%clk 0:03:00.9]} 1... e5 {[%clk 0:02:58.9]} 2. Nc3 {[%clk 0:03:00.1]}
2... Nf6 {[%clk 0:02:57.8]} 3. g3 {[%clk 0:02:59.9]} 3... Bc5 {[%clk 0:02:55.8]}
4. Bg2 {[%clk 0:02:59.4]} 4... d6 {[%clk 0:02:53.9]} 5. Nge2 {[%clk 0:02:56.6]}
5... h5 {[%clk 0:02:53.5]} 6. h3 {[%clk 0:02:56.3]} 6... Nc6 {[%clk 0:02:51.6]}
7. Na4 {[%clk 0:02:54.6]} 7... Be6 {[%clk 0:02:49.8]} 8. c3 {[%clk 0:02:46.4]}
8... a6 {[%clk 0:02:35.8]} 9. d4 {[%clk 0:02:37.1]} 9... exd4 {[%clk 0:02:36.7]}
10. cxd4 {[%clk 0:02:36.7]} 10... Bb4+ {[%clk 0:02:36.7]} 11. Nac3 {[%clk
0:02:35.7]} 11... d5 {[%clk 0:02:32.2]} 12. e5 {[%clk 0:02:22.1]} 12... Ne4
{[%clk 0:02:30.7]} 13. O-O {[%clk 0:02:22.1]} 13... Nxc3 {[%clk 0:01:34.4]} 14.
bxc3 {[%clk 0:02:21.2]} 14... Be7 {[%clk 0:01:34.3]} 15. Rb1 {[%clk 0:02:17.8]}
15... b5 {[%clk 0:01:33.4]} 16. Nf4 {[%clk 0:02:17.3]} 16... Qd7 {[%clk
0:01:17.4]} 17. a4 {[%clk 0:02:06.4]} 17... bxa4 {[%clk 0:01:11.6]} 18. Qxa4
{[%clk 0:01:56]} 18... O-O {[%clk 0:00:58.5]} 19. Ba3 {[%clk 0:01:24.8]} 19...
Bxa3 {[%clk 0:00:24.6]} 20. Qxa3 {[%clk 0:01:24]} 20... h4 {[%clk 0:00:25.2]}
21. Qc5 {[%clk 0:01:16.8]} 21... hxg3 {[%clk 0:00:21.9]} 22. fxg3 {[%clk
0:01:16.7]} 22... Rfd8 {[%clk 0:00:22.5]} 23. Rb7 {[%clk 0:01:04.3]} 23... Rab8
{[%clk 0:00:16.5]} 24. Rfb1 {[%clk 0:00:50.3]} 24... Rxb7 {[%clk 0:00:10.7]} 25.
Rxb7 {[%clk 0:00:51.2]} 25... g5 {[%clk 0:00:06.1]} 26. Nh5 {[%clk 0:00:49.1]}
26... Kh8 {[%clk 0:00:06.1]} 27. Nf6 {[%clk 0:00:48.3]} 1-0